[Event "*** SCC Grand Prix: Titled Tuesday Blitz"]
[Site "Chess.com"]
[Date "2020.06.02"]
[Round "1"]
[White "MightyGMpretender"]
[Black "DonPreuss"]
[Result "1-0"]
[WhiteElo "2571"]
[BlackElo "2229"]
[TimeControl "180+1"]
[EndTime "10:06:58 PDT"]
[Termination "MightyGMpretender won by resignation"]

1. Nf3 {[%clk 0:02:59.9]} 1... Nc6 {[%clk 0:02:58.2]} 2. d4 {[%clk 0:02:49.6]}
2... d6 {[%clk 0:02:57.7]} 3. c4 {[%clk 0:02:45.9]} 3... g6 {[%clk 0:02:56.2]}
4. Nc3 {[%clk 0:02:45.7]} 4... Bg7 {[%clk 0:02:56.3]} 5. h3 {[%clk 0:02:44.1]}
5... e5 {[%clk 0:02:53.5]} 6. d5 {[%clk 0:02:41.8]} 6... Nce7 {[%clk 0:02:51.5]}
7. e4 {[%clk 0:02:40]} 7... f5 {[%clk 0:02:50.8]} 8. Bd3 {[%clk 0:02:36.3]} 8...
Nf6 {[%clk 0:02:48.7]} 9. Qc2 {[%clk 0:02:33.5]} 9... O-O {[%clk 0:02:39.8]} 10.
Bd2 {[%clk 0:02:33.5]} 10... fxe4 {[%clk 0:02:35.7]} 11. Nxe4 {[%clk 0:02:32.8]}
11... Nxe4 {[%clk 0:02:36.2]} 12. Bxe4 {[%clk 0:02:31.9]} 12... Bf5 {[%clk
0:02:36.8]} 13. Bg5 {[%clk 0:02:27.7]} 13... Qd7 {[%clk 0:02:35]} 14. Bxe7
{[%clk 0:02:25.7]} 14... Qxe7 {[%clk 0:02:32.7]} 15. O-O {[%clk 0:02:18.9]}
15... Bxe4 {[%clk 0:02:27.4]} 16. Qxe4 {[%clk 0:02:18.6]} 16... Rf4 {[%clk
0:02:27.5]} 17. Qe2 {[%clk 0:02:19.2]} 17... Raf8 {[%clk 0:02:17]} 18. Nd2
{[%clk 0:02:17]} 18... e4 {[%clk 0:01:28]} 19. g3 {[%clk 0:02:14.7]} 19... R4f5
{[%clk 0:01:13.5]} 20. Qxe4 {[%clk 0:02:10]} 20... Qxe4 {[%clk 0:01:02.9]} 21.
Nxe4 {[%clk 0:02:10.9]} 21... Bxb2 {[%clk 0:01:03]} 22. Rab1 {[%clk 0:02:11.4]}
22... Bd4 {[%clk 0:01:03.5]} 23. Kg2 {[%clk 0:02:05.6]} 23... h6 {[%clk
0:00:46.1]} 24. Rxb7 {[%clk 0:02:03]} 24... Bb6 {[%clk 0:00:44.9]} 25. a4 {[%clk
0:01:56]} 25... Rf3 {[%clk 0:00:43.4]} 26. a5 {[%clk 0:01:51.3]} 26... Bxa5
{[%clk 0:00:42.5]} 27. Rxa7 {[%clk 0:01:51.9]} 27... Bb6 {[%clk 0:00:42.3]} 28.
Ra8 {[%clk 0:01:52.5]} 28... Rxa8 {[%clk 0:00:41.5]} 29. Kxf3 {[%clk 0:01:52.4]}
29... Ra3+ {[%clk 0:00:35.3]} 30. Kg2 {[%clk 0:01:50.3]} 30... Kf7 {[%clk
0:00:33]} 31. Rc1 {[%clk 0:01:43.5]} 31... Ra2 {[%clk 0:00:31.9]} 32. Rc3 {[%clk
0:01:36.2]} 32... Bd4 {[%clk 0:00:27.2]} 33. Rd3 {[%clk 0:01:33.5]} 33... Bb6
{[%clk 0:00:26.4]} 34. Rf3+ {[%clk 0:01:32.1]} 34... Ke7 {[%clk 0:00:26.6]} 35.
Nf6 {[%clk 0:01:29.8]} 35... h5 {[%clk 0:00:21.7]} 36. Ng8+ {[%clk 0:01:25.7]}
36... Ke8 {[%clk 0:00:19.4]} 37. Nf6+ {[%clk 0:01:24.7]} 37... Ke7 {[%clk
0:00:19]} 38. Nh7 {[%clk 0:01:24.5]} 38... Bd4 {[%clk 0:00:17.6]} 39. h4 {[%clk
0:01:23.4]} 39... Rc2 {[%clk 0:00:17.4]} 40. Nf8 {[%clk 0:01:23.1]} 40... Rxc4
{[%clk 0:00:16.2]} 41. Nxg6+ {[%clk 0:01:23.1]} 41... Ke8 {[%clk 0:00:15.3]} 42.
Rf8+ {[%clk 0:01:21.4]} 42... Kd7 {[%clk 0:00:15.5]} 43. Rf7+ {[%clk 0:01:19.9]}
43... Kc8 {[%clk 0:00:14.6]} 44. Nf4 {[%clk 0:01:16.9]} 44... Be5 {[%clk
0:00:12.6]} 45. Nxh5 {[%clk 0:01:14.7]} 45... Rd4 {[%clk 0:00:12.2]} 46. Nf4
{[%clk 0:01:11]} 46... Bxf4 {[%clk 0:00:10.4]} 47. Rxf4 {[%clk 0:01:11.6]} 47...
Rxd5 {[%clk 0:00:10.8]} 48. g4 {[%clk 0:01:11.9]} 48... Kd7 {[%clk 0:00:08.4]}
49. g5 {[%clk 0:01:12.3]} 49... Ke7 {[%clk 0:00:08.8]} 50. g6 {[%clk 0:01:12.3]}
50... Rh5 {[%clk 0:00:07.9]} 51. g7 {[%clk 0:01:10.1]} 1-0

[Event "*** SCC Grand Prix: Titled Tuesday Blitz"]
[Site "Chess.com"]
[Date "2020.06.02"]
[Round "1"]
[White "I_Hit_18K_on_BS"]
[Black "Mikasinski"]
[Result "1-0"]
[WhiteElo "2109"]
[BlackElo "2486"]
[TimeControl "180+1"]
[EndTime "10:06:58 PDT"]
[Termination "I_Hit_18K_on_BS won on time"]

1. e4 {[%clk 0:02:56.1]} 1... c5 {[%clk 0:02:44.3]} 2. Nf3 {[%clk 0:02:53.3]}
2... d6 {[%clk 0:02:43.8]} 3. d4 {[%clk 0:02:53.5]} 3... cxd4 {[%clk 0:02:43.7]}
4. Nxd4 {[%clk 0:02:53.9]} 4... Nf6 {[%clk 0:02:43.5]} 5. Nc3 {[%clk 0:02:53.7]}
5... g6 {[%clk 0:02:43.5]} 6. Be3 {[%clk 0:02:51.6]} 6... Bg7 {[%clk 0:02:38.6]}
7. f3 {[%clk 0:02:50.6]} 7... O-O {[%clk 0:02:38.4]} 8. Qd2 {[%clk 0:02:50.2]}
8... Nc6 {[%clk 0:02:34]} 9. O-O-O {[%clk 0:02:49.8]} 9... Bd7 {[%clk
0:02:33.6]} 10. g4 {[%clk 0:02:44.8]} 10... Ne5 {[%clk 0:02:29.1]} 11. h3 {[%clk
0:02:40.8]} 11... Rc8 {[%clk 0:02:28.2]} 12. f4 {[%clk 0:02:38.4]} 12... Nc4
{[%clk 0:02:25.3]} 13. Bxc4 {[%clk 0:02:38.3]} 13... Rxc4 {[%clk 0:02:25.4]} 14.
e5 {[%clk 0:02:10.2]} 14... Ne8 {[%clk 0:01:52.7]} 15. Qe2 {[%clk 0:01:57.2]}
15... Rc8 {[%clk 0:01:17.2]} 16. Bf2 {[%clk 0:01:49]} 16... Qa5 {[%clk
0:00:59.6]} 17. e6 {[%clk 0:01:33.3]} 17... fxe6 {[%clk 0:00:44.5]} 18. Nxe6
{[%clk 0:01:34.2]} 18... Rxc3 {[%clk 0:00:32]} 19. Nxf8 {[%clk 0:01:30.2]} 19...
Kxf8 {[%clk 0:00:25.8]} 20. Rhe1 {[%clk 0:00:53.3]} 20... Qxa2 {[%clk
0:00:14.7]} 21. Qxe7+ {[%clk 0:00:50.9]} 21... Kg8 {[%clk 0:00:14.4]} 22. Qxd7
{[%clk 0:00:41.2]} 22... Rxc2+ {[%clk 0:00:05.2]} 23. Kxc2 {[%clk 0:00:41]}
23... Qxb2+ {[%clk 0:00:05.4]} 24. Kd3 {[%clk 0:00:41.6]} 24... Nf6 {[%clk
0:00:03.2]} 25. Qd8+ {[%clk 0:00:40.8]} 25... Bf8 {[%clk 0:00:03.4]} 26. Bd4
{[%clk 0:00:36.6]} 26... Qb5+ {[%clk 0:00:02.3]} 27. Ke3 {[%clk 0:00:31.4]}
27... Nd5+ {[%clk 0:00:02.1]} 28. Ke4 {[%clk 0:00:27.7]} 28... Qb3 {[%clk
0:00:01.2]} 29. Rd3 {[%clk 0:00:20.4]} 1-0

[Event "*** SCC Grand Prix: Titled Tuesday Blitz"]
[Site "Chess.com"]
[Date "2020.06.02"]
[Round "1"]
[White "iaraldinho"]
[Black "ARMQUEEN"]
[Result "1-0"]
[WhiteElo "2662"]
[BlackElo "2328"]
[TimeControl "180+1"]
[EndTime "10:06:59 PDT"]
[Termination "iaraldinho won by resignation"]

1. e4 {[%clk 0:03:00.9]} 1... c5 {[%clk 0:02:59.9]} 2. Nf3 {[%clk 0:03:00.5]}
2... Nc6 {[%clk 0:02:58.2]} 3. d4 {[%clk 0:03:00.9]} 3... cxd4 {[%clk
0:02:57.6]} 4. Nxd4 {[%clk 0:03:01.8]} 4... g6 {[%clk 0:02:57]} 5. Nc3 {[%clk
0:03:01.6]} 5... Bg7 {[%clk 0:02:56.8]} 6. Be3 {[%clk 0:03:02.1]} 6... Nf6
{[%clk 0:02:57]} 7. Be2 {[%clk 0:03:01.9]} 7... d5 {[%clk 0:02:52.5]} 8. exd5
{[%clk 0:03:02.8]} 8... Nxd5 {[%clk 0:02:52.1]} 9. Nxd5 {[%clk 0:02:46.6]} 9...
Qxd5 {[%clk 0:02:53]} 10. Bf3 {[%clk 0:02:44.5]} 10... Qa5+ {[%clk 0:02:49.4]}
11. c3 {[%clk 0:02:44]} 11... Ne5 {[%clk 0:02:42.6]} 12. Be2 {[%clk 0:02:42.5]}
12... O-O {[%clk 0:02:40.4]} 13. O-O {[%clk 0:02:42.2]} 13... Rd8 {[%clk
0:02:39.1]} 14. Qb3 {[%clk 0:02:37.7]} 14... a6 {[%clk 0:02:17.7]} 15. h3 {[%clk
0:02:34.5]} 15... Qc7 {[%clk 0:02:16.6]} 16. a4 {[%clk 0:02:29]} 16... b6 {[%clk
0:02:01.8]} 17. Nf3 {[%clk 0:02:16.7]} 17... Nxf3+ {[%clk 0:01:57.8]} 18. Bxf3
{[%clk 0:02:15.1]} 18... Rb8 {[%clk 0:01:58]} 19. Rad1 {[%clk 0:02:09]} 19...
Be6 {[%clk 0:01:57.8]} 20. Rxd8+ {[%clk 0:02:08]} 20... Qxd8 {[%clk 0:01:57.9]}
21. Qb4 {[%clk 0:02:04.7]} 21... Be5 {[%clk 0:01:56.4]} 22. Rd1 {[%clk
0:02:03.2]} 22... Qc7 {[%clk 0:01:55.5]} 23. Be2 {[%clk 0:01:47.5]} 23... Bd6
{[%clk 0:01:51.1]} 24. Qh4 {[%clk 0:01:36.8]} 24... a5 {[%clk 0:01:45.5]} 25.
Bg5 {[%clk 0:01:29.8]} 25... Bb3 {[%clk 0:01:39.6]} 26. Rd4 {[%clk 0:01:24.5]}
26... Bc5 {[%clk 0:01:34.6]} 27. Re4 {[%clk 0:01:22.5]} 27... f6 {[%clk
0:01:17.2]} 28. Bf4 {[%clk 0:01:21.9]} 28... Bd6 {[%clk 0:01:15.4]} 29. Bc4+
{[%clk 0:01:16.1]} 29... Kh8 {[%clk 0:01:11]} 30. Bxd6 {[%clk 0:01:11.8]} 30...
Qxd6 {[%clk 0:01:07]} 31. Bxb3 {[%clk 0:01:11.6]} 31... b5 {[%clk 0:01:02.9]}
32. Rd4 {[%clk 0:01:08.9]} 32... Qe5 {[%clk 0:01:02.1]} 33. Qe4 {[%clk
0:01:04.5]} 33... bxa4 {[%clk 0:00:44.6]} 34. Bxa4 {[%clk 0:00:59]} 34... Rxb2
{[%clk 0:00:40.7]} 35. Qxe5 {[%clk 0:00:59]} 35... fxe5 {[%clk 0:00:41.2]} 36.
Rd5 {[%clk 0:00:58.1]} 36... e4 {[%clk 0:00:35]} 37. Rxa5 {[%clk 0:00:57.1]}
37... Kg7 {[%clk 0:00:35.3]} 38. Re5 {[%clk 0:00:54.9]} 38... Rb1+ {[%clk
0:00:33.5]} 39. Kh2 {[%clk 0:00:54.3]} 39... Rc1 {[%clk 0:00:33.5]} 40. Rxe7+
{[%clk 0:00:52.1]} 40... Kf6 {[%clk 0:00:32.9]} 41. Rxe4 {[%clk 0:00:53]} 41...
Rxc3 {[%clk 0:00:33]} 42. Re3 {[%clk 0:00:53.1]} 42... Rc1 {[%clk 0:00:30.3]}
43. Kg3 {[%clk 0:00:52.4]} 43... h5 {[%clk 0:00:29.9]} 44. Bb3 {[%clk
0:00:53.3]} 44... g5 {[%clk 0:00:27]} 45. h4 {[%clk 0:00:54.2]} 45... gxh4+
{[%clk 0:00:24.2]} 46. Kxh4 {[%clk 0:00:55.1]} 46... Rh1+ {[%clk 0:00:22.6]} 47.
Rh3 {[%clk 0:00:54.6]} 47... Rf1 {[%clk 0:00:23.2]} 48. Kxh5 {[%clk 0:00:53]}
1-0

[Event "*** SCC Grand Prix: Titled Tuesday Blitz"]
[Site "Chess.com"]
[Date "2020.06.02"]
[Round "1"]
[White "platy3"]
[Black "MartinMatthiesen"]
[Result "1-0"]
[WhiteElo "2720"]
[BlackElo "2362"]
[TimeControl "180+1"]
[EndTime "10:07:03 PDT"]
[Termination "platy3 won by resignation"]

1. e4 {[%clk 0:02:55.8]} 1... e5 {[%clk 0:02:57.7]} 2. Nf3 {[%clk 0:02:55.3]}
2... Nc6 {[%clk 0:02:57.8]} 3. Bb5 {[%clk 0:02:55.8]} 3... a6 {[%clk 0:02:58]}
4. Ba4 {[%clk 0:02:56.1]} 4... Nf6 {[%clk 0:02:58.3]} 5. O-O {[%clk 0:02:56.4]}
5... Be7 {[%clk 0:02:58.5]} 6. Re1 {[%clk 0:02:56.8]} 6... b5 {[%clk 0:02:57.9]}
7. Bb3 {[%clk 0:02:57.3]} 7... O-O {[%clk 0:02:58]} 8. c3 {[%clk 0:02:56.3]}
8... d5 {[%clk 0:02:57.2]} 9. exd5 {[%clk 0:02:54.2]} 9... Nxd5 {[%clk 0:02:57]}
10. Nxe5 {[%clk 0:02:54.7]} 10... Nxe5 {[%clk 0:02:57]} 11. Rxe5 {[%clk
0:02:55.6]} 11... c6 {[%clk 0:02:57.1]} 12. d3 {[%clk 0:02:56]} 12... Bd6 {[%clk
0:02:55.7]} 13. Re1 {[%clk 0:02:56.5]} 13... Bf5 {[%clk 0:02:53.6]} 14. Qf3
{[%clk 0:02:49.1]} 14... Qf6 {[%clk 0:02:28]} 15. Nd2 {[%clk 0:02:43.8]} 15...
Rae8 {[%clk 0:02:10.9]} 16. Ne4 {[%clk 0:02:24]} 16... Qg6 {[%clk 0:02:10.3]}
17. h3 {[%clk 0:02:22.6]} 17... Bb8 {[%clk 0:01:26.8]} 18. Bd2 {[%clk
0:02:13.8]} 18... Ba7 {[%clk 0:01:23.6]} 19. a4 {[%clk 0:02:04.8]} 19... Re7
{[%clk 0:01:17.1]} 20. axb5 {[%clk 0:02:02.1]} 20... axb5 {[%clk 0:01:17.1]} 21.
Ng3 {[%clk 0:01:42.3]} 21... Be6 {[%clk 0:00:54.8]} 22. d4 {[%clk 0:01:30.5]}
22... Rfe8 {[%clk 0:00:50.6]} 23. Qh5 {[%clk 0:01:22.8]} 23... Qxh5 {[%clk
0:00:34]} 24. Nxh5 {[%clk 0:01:23.7]} 24... h6 {[%clk 0:00:34.4]} 25. Ng3 {[%clk
0:01:18.7]} 25... Bb8 {[%clk 0:00:32]} 26. Ne4 {[%clk 0:01:10.5]} 26... Bf5
{[%clk 0:00:27.4]} 27. f3 {[%clk 0:00:53.7]} 27... Kh7 {[%clk 0:00:23]} 28. Kf2
{[%clk 0:00:50.2]} 28... Bxe4 {[%clk 0:00:20.5]} 29. fxe4 {[%clk 0:00:49.9]}
29... Nf6 {[%clk 0:00:19.7]} 30. e5 {[%clk 0:00:49.2]} 30... Nd5 {[%clk
0:00:19.7]} 31. Ra6 {[%clk 0:00:48.5]} 31... Re6 {[%clk 0:00:18.8]} 32. Bc2+
{[%clk 0:00:47.5]} 32... Kg8 {[%clk 0:00:18.5]} 33. Bf5 {[%clk 0:00:46.9]} 33...
R6e7 {[%clk 0:00:17.3]} 34. Rxc6 {[%clk 0:00:47.5]} 34... f6 {[%clk 0:00:16.2]}
35. e6 {[%clk 0:00:42.4]} 35... Ra7 {[%clk 0:00:13.2]} 36. Bg6 {[%clk
0:00:40.9]} 36... Rd8 {[%clk 0:00:12.2]} 37. Be4 {[%clk 0:00:36.5]} 37... Ne7
{[%clk 0:00:12.1]} 38. Rb6 {[%clk 0:00:36.2]} 38... Ra2 {[%clk 0:00:12.1]} 39.
Rxb5 {[%clk 0:00:35.7]} 1-0

[Event "*** SCC Grand Prix: Titled Tuesday Blitz"]
[Site "Chess.com"]
[Date "2020.06.02"]
[Round "1"]
[White "Skatchkov_V"]
[Black "nitpicker"]
[Result "1-0"]
[WhiteElo "2549"]
[BlackElo "2198"]
[TimeControl "180+1"]
[EndTime "10:07:03 PDT"]
[Termination "Skatchkov_V won on time"]

1. d4 {[%clk 0:02:58.3]} 1... Nf6 {[%clk 0:02:48.9]} 2. c4 {[%clk 0:02:57.7]}
2... e6 {[%clk 0:02:44.6]} 3. Nf3 {[%clk 0:02:57.2]} 3... b6 {[%clk 0:02:41.9]}
4. g3 {[%clk 0:02:57.2]} 4... Ba6 {[%clk 0:02:41.1]} 5. b3 {[%clk 0:02:57]} 5...
b5 {[%clk 0:02:41.3]} 6. Nbd2 {[%clk 0:02:27.2]} 6... bxc4 {[%clk 0:02:21.5]} 7.
bxc4 {[%clk 0:02:28.1]} 7... Be7 {[%clk 0:02:10.9]} 8. Bg2 {[%clk 0:02:27.9]}
8... d5 {[%clk 0:02:00.4]} 9. O-O {[%clk 0:02:26.6]} 9... O-O {[%clk 0:01:57.9]}
10. Ne5 {[%clk 0:02:22.7]} 10... c5 {[%clk 0:01:47.4]} 11. cxd5 {[%clk
0:02:10.6]} 11... Nxd5 {[%clk 0:01:35.9]} 12. dxc5 {[%clk 0:01:54.4]} 12... Bxc5
{[%clk 0:01:26.6]} 13. Bb2 {[%clk 0:01:53.9]} 13... Bb7 {[%clk 0:01:00.4]} 14.
Rc1 {[%clk 0:01:48.1]} 14... Bb6 {[%clk 0:00:58.6]} 15. Ndc4 {[%clk 0:01:47.1]}
15... Bc7 {[%clk 0:00:53.7]} 16. Qb3 {[%clk 0:01:42.1]} 16... Ba6 {[%clk
0:00:40.7]} 17. Rfd1 {[%clk 0:01:41.5]} 17... Nd7 {[%clk 0:00:32.3]} 18. Nxd7
{[%clk 0:01:10.7]} 18... Qxd7 {[%clk 0:00:25.8]} 19. e4 {[%clk 0:00:56.1]} 19...
Rab8 {[%clk 0:00:18.5]} 20. Qc2 {[%clk 0:00:29.4]} 20... Bxc4 {[%clk 0:00:16.9]}
21. Qxc4 {[%clk 0:00:26.7]} 21... Rxb2 {[%clk 0:00:13.1]} 22. exd5 {[%clk
0:00:26.9]} 22... Bb6 {[%clk 0:00:13.3]} 23. Rc2 {[%clk 0:00:20.5]} 23... Rxc2
{[%clk 0:00:10.1]} 24. Qxc2 {[%clk 0:00:21.4]} 24... Rd8 {[%clk 0:00:08.8]} 25.
Bf3 {[%clk 0:00:19.1]} 25... e5 {[%clk 0:00:08.6]} 26. Kg2 {[%clk 0:00:18.9]}
26... Bd4 {[%clk 0:00:08.4]} 27. Qb3 {[%clk 0:00:18.5]} 27... Qd6 {[%clk
0:00:06.6]} 28. Rc1 {[%clk 0:00:17.9]} 28... Rb8 {[%clk 0:00:05.7]} 29. Qa4
{[%clk 0:00:14.5]} 29... g6 {[%clk 0:00:03.7]} 30. Rc6 {[%clk 0:00:14.3]} 1-0

[Event "*** SCC Grand Prix: Titled Tuesday Blitz"]
[Site "Chess.com"]
[Date "2020.06.02"]
[Round "1"]
[White "capatl"]
[Black "Micki-taryan"]
[Result "0-1"]
[WhiteElo "2455"]
[BlackElo "3044"]
[TimeControl "180+1"]
[EndTime "10:07:04 PDT"]
[Termination "Micki-taryan won by resignation"]

1. d4 {[%clk 0:03:00.4]} 1... Nf6 {[%clk 0:02:37.3]} 2. Nf3 {[%clk 0:02:57.4]}
2... e6 {[%clk 0:02:38.2]} 3. g3 {[%clk 0:02:55.3]} 3... b5 {[%clk 0:02:36.2]}
4. Bg2 {[%clk 0:02:54.2]} 4... Bb7 {[%clk 0:02:32]} 5. O-O {[%clk 0:02:54]} 5...
c5 {[%clk 0:02:31.8]} 6. a4 {[%clk 0:02:51.3]} 6... b4 {[%clk 0:02:30.9]} 7.
Nbd2 {[%clk 0:02:35.3]} 7... cxd4 {[%clk 0:02:20.1]} 8. Nb3 {[%clk 0:02:32.2]}
8... Be7 {[%clk 0:02:17.8]} 9. Nbxd4 {[%clk 0:02:11.4]} 9... O-O {[%clk
0:02:17.1]} 10. Nb5 {[%clk 0:02:05.2]} 10... d5 {[%clk 0:01:49.2]} 11. Bf4
{[%clk 0:02:01.9]} 11... Na6 {[%clk 0:01:49.3]} 12. Ne5 {[%clk 0:01:10.6]} 12...
Nc5 {[%clk 0:01:45.4]} 13. Nd3 {[%clk 0:01:03.4]} 13... a6 {[%clk 0:01:45.7]}
14. Nd4 {[%clk 0:00:54.6]} 14... Nfd7 {[%clk 0:01:46]} 15. Nxc5 {[%clk 0:00:53]}
15... Bxc5 {[%clk 0:01:45.6]} 16. Be3 {[%clk 0:00:47.8]} 16... Be7 {[%clk
0:01:44.5]} 17. Qd2 {[%clk 0:00:47.6]} 17... Nf6 {[%clk 0:01:44.4]} 18. Nb3
{[%clk 0:00:46.1]} 18... Rc8 {[%clk 0:01:44.4]} 19. Rac1 {[%clk 0:00:43.7]}
19... Qd7 {[%clk 0:01:43.5]} 20. Rfd1 {[%clk 0:00:41.2]} 20... Qxa4 {[%clk
0:01:42.9]} 21. Ra1 {[%clk 0:00:36.6]} 21... Qd7 {[%clk 0:01:43.3]} 22. Na5
{[%clk 0:00:34.3]} 22... Ba8 {[%clk 0:01:42.7]} 23. Qd3 {[%clk 0:00:34.7]} 23...
Rc7 {[%clk 0:01:38.9]} 24. Qxa6 {[%clk 0:00:30]} 24... Rxc2 {[%clk 0:01:39]} 25.
Bd4 {[%clk 0:00:30]} 25... h6 {[%clk 0:01:36.1]} 26. Nb3 {[%clk 0:00:29.1]}
26... Rcc8 {[%clk 0:01:34.9]} 27. Rdc1 {[%clk 0:00:28.4]} 27... Ne4 {[%clk
0:01:34.6]} 28. Rxc8 {[%clk 0:00:26.5]} 28... Rxc8 {[%clk 0:01:35.5]} 29. Qxa8
{[%clk 0:00:26.1]} 29... Rxa8 {[%clk 0:01:34.6]} 30. Rxa8+ {[%clk 0:00:27]}
30... Kh7 {[%clk 0:01:35.2]} 31. f3 {[%clk 0:00:26.8]} 31... Nd6 {[%clk
0:01:30.9]} 32. e3 {[%clk 0:00:26.7]} 32... Nb5 {[%clk 0:01:29.2]} 33. Bf1
{[%clk 0:00:26.2]} 33... Nxd4 {[%clk 0:01:29.1]} 34. Nxd4 {[%clk 0:00:26.3]}
34... Bf6 {[%clk 0:01:28.2]} 35. Bd3+ {[%clk 0:00:27.2]} 35... g6 {[%clk
0:01:28.7]} 36. Nb5 {[%clk 0:00:26.9]} 36... Qc6 {[%clk 0:01:24.5]} 37. Ra7
{[%clk 0:00:26.8]} 37... Qc1+ {[%clk 0:01:24.9]} 38. Kg2 {[%clk 0:00:26.5]}
38... Qxe3 {[%clk 0:01:15.2]} 39. Rxf7+ {[%clk 0:00:25.3]} 39... Kg8 {[%clk
0:01:15.4]} 40. Bxg6 {[%clk 0:00:25.3]} 40... Qe2+ {[%clk 0:01:14.4]} 41. Kh3
{[%clk 0:00:25.5]} 41... Qxb5 {[%clk 0:01:07.7]} 42. Rxf6 {[%clk 0:00:24.6]}
42... Qe2 {[%clk 0:01:08.6]} 43. Bh5 {[%clk 0:00:19.5]} 43... b3 {[%clk
0:00:59.1]} 44. Kg4 {[%clk 0:00:16.8]} 44... Qxb2 {[%clk 0:00:58]} 45. Rxe6
{[%clk 0:00:16.4]} 45... Qd4+ {[%clk 0:00:56.4]} 46. f4 {[%clk 0:00:15.7]} 46...
b2 {[%clk 0:00:53.4]} 47. Re8+ {[%clk 0:00:14.9]} 47... Kh7 {[%clk 0:00:53.8]}
48. Re7+ {[%clk 0:00:14.8]} 48... Qg7+ {[%clk 0:00:54.2]} 49. Rxg7+ {[%clk
0:00:12.1]} 49... Kxg7 {[%clk 0:00:55.1]} 0-1

[Event "*** SCC Grand Prix: Titled Tuesday Blitz"]
[Site "Chess.com"]
[Date "2020.06.02"]
[Round "1"]
[White "anon102030"]
[Black "chessablanca"]
[Result "0-1"]
[WhiteElo "2807"]
[BlackElo "2427"]
[TimeControl "180+1"]
[EndTime "10:07:04 PDT"]
[Termination "chessablanca won on time"]

1. e4 {[%clk 0:03:00.2]} 1... e5 {[%clk 0:02:59.6]} 2. Nf3 {[%clk 0:02:57]} 2...
Nc6 {[%clk 0:02:59.7]} 3. Bc4 {[%clk 0:02:55.5]} 3... Bc5 {[%clk 0:02:59.9]} 4.
c3 {[%clk 0:02:55.4]} 4... Nf6 {[%clk 0:02:59.6]} 5. d4 {[%clk 0:02:54.9]} 5...
exd4 {[%clk 0:02:59.5]} 6. cxd4 {[%clk 0:02:55.8]} 6... Bb4+ {[%clk 0:02:59.4]}
7. Bd2 {[%clk 0:02:55.6]} 7... Bxd2+ {[%clk 0:02:59.5]} 8. Nbxd2 {[%clk
0:02:56.4]} 8... d5 {[%clk 0:03:00]} 9. exd5 {[%clk 0:02:56.6]} 9... Nxd5 {[%clk
0:03:00.9]} 10. O-O {[%clk 0:02:54.3]} 10... O-O {[%clk 0:03:00.4]} 11. Re1
{[%clk 0:02:53.9]} 11... Be6 {[%clk 0:02:56.8]} 12. Rc1 {[%clk 0:02:49.4]} 12...
Re8 {[%clk 0:02:37.8]} 13. Ne4 {[%clk 0:02:40.7]} 13... Nb6 {[%clk 0:02:14.7]}
14. Bb5 {[%clk 0:02:31.5]} 14... Bd5 {[%clk 0:02:10.7]} 15. Ned2 {[%clk
0:01:42.1]} 15... Qf6 {[%clk 0:01:54.6]} 16. Ne5 {[%clk 0:01:13.4]} 16... Nxe5
{[%clk 0:01:35.3]} 17. dxe5 {[%clk 0:01:07.4]} 17... Rxe5 {[%clk 0:01:33.8]} 18.
Rxc7 {[%clk 0:01:06.3]} 18... Qg5 {[%clk 0:01:17.9]} 19. f3 {[%clk 0:00:57.9]}
19... Rd8 {[%clk 0:01:09.2]} 20. Rxe5 {[%clk 0:00:33.6]} 20... Qxe5 {[%clk
0:01:10.1]} 21. Qc2 {[%clk 0:00:31.3]} 21... Qe3+ {[%clk 0:00:56.3]} 22. Kh1
{[%clk 0:00:27]} 22... g6 {[%clk 0:00:44.4]} 23. Nf1 {[%clk 0:00:26]} 23... Qe5
{[%clk 0:00:40.8]} 24. b3 {[%clk 0:00:25.9]} 24... Bxf3 {[%clk 0:00:39.2]} 25.
gxf3 {[%clk 0:00:22.6]} 25... Qxb5 {[%clk 0:00:39.2]} 26. Ne3 {[%clk 0:00:21.3]}
26... Qe5 {[%clk 0:00:38.4]} 27. Ng4 {[%clk 0:00:19.2]} 27... Qf4 {[%clk
0:00:35]} 28. Qe2 {[%clk 0:00:14.9]} 28... Qxc7 {[%clk 0:00:33.7]} 29. Qb2
{[%clk 0:00:06.5]} 29... Qd6 {[%clk 0:00:18.2]} 30. Nf6+ {[%clk 0:00:04.6]}
30... Kf8 {[%clk 0:00:17]} 31. Nxh7+ {[%clk 0:00:04.2]} 31... Ke7 {[%clk
0:00:16.5]} 32. Kg2 {[%clk 0:00:01.3]} 32... Qd2+ {[%clk 0:00:16]} 0-1

[Event "*** SCC Grand Prix: Titled Tuesday Blitz"]
[Site "Chess.com"]
[Date "2020.06.02"]
[Round "1"]
[White "zaur-mammadov"]
[Black "lifeissofun"]
[Result "0-1"]
[WhiteElo "2582"]
[BlackElo "2275"]
[TimeControl "180+1"]
[EndTime "10:07:04 PDT"]
[Termination "lifeissofun won by resignation"]

1. e4 {[%clk 0:03:00.9]} 1... c5 {[%clk 0:02:58.6]} 2. c3 {[%clk 0:03:00.6]}
2... Nf6 {[%clk 0:02:57.7]} 3. e5 {[%clk 0:03:00.7]} 3... Nd5 {[%clk 0:02:58.2]}
4. Nf3 {[%clk 0:03:01.4]} 4... e6 {[%clk 0:02:58.2]} 5. d4 {[%clk 0:03:02.3]}
5... cxd4 {[%clk 0:02:57.5]} 6. cxd4 {[%clk 0:03:03.2]} 6... d6 {[%clk
0:02:58.1]} 7. Bc4 {[%clk 0:03:03.6]} 7... Be7 {[%clk 0:02:58.2]} 8. O-O {[%clk
0:03:04.2]} 8... O-O {[%clk 0:02:58.1]} 9. Qe2 {[%clk 0:03:04.8]} 9... b6 {[%clk
0:02:58.5]} 10. Rd1 {[%clk 0:03:04.9]} 10... Bb7 {[%clk 0:02:58.4]} 11. Bd2
{[%clk 0:03:05.5]} 11... Nc6 {[%clk 0:02:56.3]} 12. Nc3 {[%clk 0:03:05.9]} 12...
Nxc3 {[%clk 0:02:55.7]} 13. Bxc3 {[%clk 0:03:06.8]} 13... Rc8 {[%clk 0:02:54.1]}
14. exd6 {[%clk 0:03:06.5]} 14... Bxd6 {[%clk 0:02:53.1]} 15. d5 {[%clk
0:03:06.9]} 15... exd5 {[%clk 0:02:43.5]} 16. Rxd5 {[%clk 0:01:48.7]} 16... Ne7
{[%clk 0:02:12.6]} 17. Rh5 {[%clk 0:01:47.4]} 17... Bxf3 {[%clk 0:02:07.2]} 18.
gxf3 {[%clk 0:01:38.8]} 18... Qc7 {[%clk 0:02:03.3]} 19. Qe4 {[%clk 0:01:30.1]}
19... Ng6 {[%clk 0:01:57]} 20. Bb3 {[%clk 0:01:18.3]} 20... Rfe8 {[%clk
0:01:47.3]} 21. Qg4 {[%clk 0:01:07.8]} 21... Rcd8 {[%clk 0:01:27.7]} 22. Rd1
{[%clk 0:00:37.6]} 22... Be5 {[%clk 0:00:50.8]} 23. Rxd8 {[%clk 0:00:34.3]}
23... Qxd8 {[%clk 0:00:51.7]} 24. Rxh7 {[%clk 0:00:20]} 24... Bxc3 {[%clk
0:00:44.5]} 25. Qxg6 {[%clk 0:00:16.9]} 25... Qd1+ {[%clk 0:00:28.4]} 26. Kg2
{[%clk 0:00:12.1]} 26... Qxb3 {[%clk 0:00:28.4]} 27. Qh5 {[%clk 0:00:12]} 27...
g6 {[%clk 0:00:25.1]} 28. Qh6 {[%clk 0:00:07.7]} 28... Qxb2 {[%clk 0:00:24]} 29.
Rxf7 {[%clk 0:00:05.6]} 29... Kxf7 {[%clk 0:00:23.4]} 30. Qf4+ {[%clk
0:00:06.4]} 30... Bf6 {[%clk 0:00:23.3]} 31. Qc4+ {[%clk 0:00:06.6]} 31... Re6
{[%clk 0:00:23.1]} 32. Qc7+ {[%clk 0:00:06.8]} 32... Re7 {[%clk 0:00:22.3]} 33.
Qc4+ {[%clk 0:00:06.7]} 33... Kg7 {[%clk 0:00:22.8]} 34. Qf4 {[%clk 0:00:06.4]}
34... Qe5 {[%clk 0:00:22.9]} 35. Qg4 {[%clk 0:00:06.3]} 35... Qg5 {[%clk
0:00:23.1]} 0-1